fUST/lending_fUST_20240514
["ID","MTS","AMOUNT","RATE_DAILY","PERIOD"]
[326940394,1715623850040,-153.0,0.0007033,60]
[326940395,1715623850048,-153.0,0.0007033,60]
[326940396,1715623850057,-1198.35,0.00070547,120]
[326940397,1715623850066,-160.0,0.00070849,3]
[326940398,1715623850077,-161.21130763,0.00070849,5]
[326940399,1715623850086,-1198.35,0.00071232,120]
[326940400,1715623850095,-151.0,0.00071808,120]
[326940401,1715623850104,-1198.35,0.00071917,120]
[326940402,1715623850114,-673.28,0.000725,120]
[326940403,1715623850123,-1198.35,0.00072602,120]
[326940404,1715623850132,-1198.42762898,0.00073287,120]
[326940405,1715623850141,-151.0,0.00073562,120]
[326940406,1715623850150,-160.002208,0.00073973,120]
[326940407,1715623850158,-3621.47220426,0.000755,120]
[326940408,1715623850167,-200.0,0.00075666,120]
[326940409,1715623850176,-10000.0,0.00076,90]
[326940410,1715623850185,-593.4264,0.00076,90]
[326940411,1715623850194,-800.90270298,0.00076712,120]
[326940412,1715623850203,-294.59484087,0.00077,120]
[326940413,1715623850212,-10000.0,0.00077,90]
[326940414,1715623850221,-200.0,0.00077277,120]
[326940415,1715623850230,-151.0,0.00077644,120]
[326940416,1715623850239,-630.0,0.0007797,35]
[326940417,1715623850248,-630.0,0.0007798,35]
[326940418,1715623850257,-630.0,0.0007799,35]
[326940419,1715623850266,-27151.25135715,0.00078,60]
[326940420,1715623850275,-1808.21597211,0.00078,120]
[326940421,1715623850285,-19490.0,0.00078,90]
[326940422,1715623850294,-1851.25643689,0.00079,120]
[326940423,1715623850303,-200.0,0.00079627,120]
[326940424,1715623850312,-1000.0,0.00079798,60]
[326940425,1715623850322,-200.0,0.00079918,120]
[326940426,1715623850332,-1000.0,0.00079999,120]
[326940427,1715623850341,-500.0,0.0008,120]
[326940428,1715623850349,-6464.90420844,0.0008,120]
[326940429,1715623850358,-4002.68223394,0.0008,2]
[326940430,1715623850367,-1776.218914,0.0008,120]
[326940431,1715623850376,-300.0,0.0008,105]
[326940432,1715623850385,-165.945859,0.00080274,120]
[326940433,1715623850394,-160.877038,0.00080274,120]
[326940434,1715623850403,-300.0,0.000815,106]
[326940435,1715623850412,-151.0,0.00081726,120]
[326940436,1715623850420,-153.0,0.00081781,60]
[326940437,1715623850429,-153.0,0.00081781,60]
[326940438,1715623850438,-153.0,0.00081781,60]
[326940439,1715623850447,-153.0,0.00081781,60]
[326940440,1715623850456,-153.0,0.00081781,60]
[326940441,1715623850465,-153.0,0.00081781,60]
[326940442,1715623850474,-153.0,0.00081781,60]
[326940443,1715623850483,-6276.7,0.00082191,120]
[326940444,1715623850496,-560.93548035,0.00083,107]
[326940445,1715623850505,-11844.86152904,0.00085,120]
[326940446,1715623850514,-151.0,0.00085808,120]
[326940447,1715623850523,-7970.80285359,0.0008588,120]
[326940448,1715623850534,-160.002208,0.00086575,120]
[326940449,1715623850543,-3000.0,0.00087,120]
[326940450,1715623850552,-5000.0,0.00087,120]
[326940451,1715623850561,-90000.0,0.00088,120]
[326940452,1715623850572,-3000.0,0.00088,120]
[326940453,1715623850581,-5000.0,0.00088,120]
[326940454,1715623850590,-10000.0,0.00088,120]
[326940455,1715623850599,-23713.2003077,0.00088,120]
[326940456,1715623850608,-153.0,0.00088493,120]
[326940457,1715623850618,-153.0,0.00088493,120]
[326940458,1715623850627,-153.0,0.00088493,120]
[326940459,1715623850636,-12557.30943354,0.00088888,120]
[326940460,1715623850645,-3000.0,0.00089,120]
[326940461,1715623850654,-5000.0,0.00089,120]
[326940462,1715623850663,-5000.0,0.00089,120]
[326940463,1715623850672,-5000.0,0.00089,120]
[326940464,1715623850681,-5000.0,0.000895,120]
[326940465,1715623850690,-172.0,0.0008989,120]
[326940466,1715623850699,-581.26904064,0.00089989,102]
[326940467,1715623850708,-3241.4037745,0.0009,45]
[326940469,1715624012624,208.4,9.999e-05,2]
[326940481,1715624872034,689.68866826,9.999e-05,2]
[326940496,1715624995010,208.4,9.999e-05,2]
[326940504,1715625034449,-551.13200046,0.00018892,2]
[326940536,1715625034767,-6405.24229907,0.00018892,2]
[326940538,1715625034777,-10501.84776686,0.00018892,2]
[326940540,1715625034786,-1895.81355421,0.00018893,2]
[326940542,1715625034795,-907.69501117,0.000189,2]
[326940544,1715625034805,-154.82968734,0.0002,2]
[326940546,1715625034817,-689.68866826,0.00020794,2]
[326940548,1715625034826,-162.32200811,0.00020796,2]
[326940550,1715625034835,-1310.42571156,0.00020811,2]
[326940552,1715625034845,-455.9748396,0.00020908,2]
[326940554,1715625034854,-266.17561455,0.00020908,2]
[326940556,1715625034865,-208.4,0.00020908,2]
[326940558,1715625034875,-364.32430512,0.00020909,2]
[326940560,1715625034884,-44424.86178346,0.0002091,2]
[326940562,1715625034894,-9390.44266503,0.00020911,2]
[326940564,1715625034903,-11037.63774094,0.00020912,2]
[326940566,1715625034914,-196.80009832,0.00020912,2]
[326940568,1715625034923,-15705.76411353,0.00020912,2]
[326940570,1715625034933,-165.945859,0.00023562,2]
[326940572,1715625034945,-160.002208,0.00023562,2]
[326940574,1715625034955,-160.877038,0.00023562,2]
[326940576,1715625034964,-907.69501117,0.000239,2]
[326940578,1715625034973,-664.95927895,0.000263,2]
[326940580,1715625034982,-569.23384257,0.0002739,10]
[326940583,1715625034992,-162.32200808,0.00030497,2]
[326940584,1715625035001,-162.32200808,0.00040199,2]
[326940587,1715625035010,-398.28945425,0.00043292,5]
[326940589,1715625035022,-344.31805971,0.00043292,5]
[326940591,1715625035032,-162.32200808,0.000499,2]
[326940593,1715625035041,-150.52,0.0005,120]
[326940595,1715625035050,-165.945859,0.00051918,2]
[326940597,1715625035060,-241.41260421,0.00054794,120]
[326940801,1715625038959,-258.58739579,0.00054794,120]
[326940803,1715625038969,-500.0,0.00054794,120]
[326940805,1715625038979,-489.94327502,0.00055068,120]
[326940807,1715625038988,-500.0,0.00055068,120]
[326940808,1715625038998,-500.0,0.00055342,120]
[326940809,1715625039008,-500.0,0.00055616,120]
[326940810,1715625039017,-500.0,0.0005589,120]
[326940811,1715625039027,-500.0,0.00056164,120]
[326940812,1715625039038,-500.0,0.00056438,120]
[326940813,1715625039048,-500.0,0.00056712,120]
[326940814,1715625039059,-500.0,0.00056986,120]
[326940815,1715625039070,-500.0,0.0005726,120]
[326940816,1715625039080,-500.0,0.00057534,120]
[326940817,1715625039091,-500.0,0.00057808,120]
[326940818,1715625039101,-500.0,0.00058082,120]
[326940819,1715625039112,-500.0,0.00058356,120]
[326940820,1715625039123,-170.27898955,0.0005863,120]
[326940821,1715625039133,-160.002208,0.0006137,2]
[326940822,1715625039143,-85.25942862,0.0007,40]
[326940823,1715625039157,-1174.59000004,0.0007,40]
[326940918,1715625687471,286.0,0.00025,60]
[326940919,1715625721710,689.68866826,9.999e-05,2]
[326940942,1715626234594,-10501.84776686,0.00019686,2]
[326940946,1715626234604,-689.68866826,0.00019687,2]
[326940949,1715626234613,-9390.44266503,0.00019687,2]
[326940952,1715626234623,-16426.0593134,0.00019689,2]
[326940955,1715626234632,-6853.16748233,0.0002,2]
[326940959,1715626234641,-154.81422293,0.0002,2]
[326940961,1715626234650,-280.53689219,0.0002091,2]
[326940963,1715626234659,-372.31624743,0.00020911,2]
[326940965,1715626234668,-500.0,0.00020911,2]
[326940967,1715626234677,-500.0,0.00020911,2]
[326940970,1715626234686,-500.0,0.00020911,2]
[326940972,1715626234696,-368.95867758,0.00020911,2]
[326940976,1715626234705,-192.45,0.00020912,2]
[326940979,1715626234715,-2087.25107621,0.00020912,2]
[326940983,1715626234725,-3467.82757115,0.00020912,2]
[326940986,1715626234735,-2012.10118066,0.00020912,2]
[326940988,1715626234744,-2632.0294246,0.00020912,2]
[326940991,1715626234754,-529.24470418,0.00020912,2]
[326941089,1715626238200,-15176.51940935,0.00020912,2]
[326941092,1715626238210,-392.43381706,0.00020912,2]
[326941095,1715626238219,-3154.8140198,0.00020912,2]
[326941098,1715626238228,-1086.19353658,0.00020913,2]
[326941101,1715626238238,-3992.3447172,0.00021,2]
[326941104,1715626238254,-156.5326781,0.00021818,2]
[326941107,1715626238263,-247.86974193,0.00021917,2]
[326941110,1715626238273,-192.8018309,0.00021917,2]
[326941113,1715626238283,-500.0,0.00021917,2]
[326941115,1715626238295,-223.13465762,0.00021917,2]
[326941118,1715626238304,-205.3106177,0.00021918,2]
[326941120,1715626238313,-166.666666,0.00021918,2]
[326941122,1715626238323,-8970.5531796,0.00021918,2]
[326941124,1715626238332,-5230.59288808,0.00022,4]
[326941126,1715626238343,-166.666666,0.00022431,2]
[326941128,1715626238352,-302.56500372,0.000229,2]
[326941130,1715626238361,-166.666666,0.00022944,2]
[326941132,1715626238371,-166.666666,0.00023456,2]
[326941134,1715626238380,-166.611603,0.00023562,2]
[326941136,1715626238390,-165.579642,0.00023562,2]
[326941138,1715626238399,-166.666666,0.00023969,2]
[326941140,1715626238409,-166.666666,0.00024482,2]
[326941142,1715626238418,-664.96098012,0.000263,2]
[326941144,1715626238428,-569.23384257,0.0002739,10]
[326941146,1715626238437,-302.56500372,0.000279,2]
[326941148,1715626238447,-302.56500372,0.000329,2]
[326941150,1715626238456,-156.53267806,0.00038873,2]
[326941152,1715626238466,-166.611603,0.00039765,2]
[326941153,1715626238475,-839.46,0.00054794,120]
[326941154,1715626238484,-839.46,0.00055068,120]
[326941155,1715626238596,-839.46,0.00055342,120]
[326941156,1715626238628,-839.46,0.00055616,120]
[326941157,1715626238637,-839.46,0.0005589,120]
[326941158,1715626238646,-156.53267806,0.00055928,2]
[326941159,1715626238655,-166.611603,0.00055969,2]
[326941160,1715626238665,-839.46,0.00056164,120]
[326941161,1715626238673,-839.46,0.00056438,120]
[326941162,1715626238683,-839.46,0.00056712,120]
[326941164,1715626238692,-839.46,0.00056986,120]
[326941166,1715626238702,-839.46,0.0005726,120]
[326941168,1715626238711,-997.80263756,0.000575,2]
[326941170,1715626238720,-839.46,0.00057534,120]
[326941172,1715626238730,-839.46,0.00057808,120]
[326941174,1715626238739,-839.46,0.00058082,120]
[326941176,1715626238748,-839.46,0.00058356,120]
[326941178,1715626238758,-839.46,0.0005863,120]
[326941180,1715626238768,-839.46,0.00058904,120]
[326941182,1715626238778,-839.46,0.00059178,120]
[326941184,1715626238787,-839.46,0.00059452,120]
[326941186,1715626238796,-839.46,0.00059726,120]
[326941188,1715626238808,-839.46,0.00059999,120]
[326941190,1715626238818,-160.0,0.000602,60]
[326941192,1715626238827,-5727.4757422,0.00060273,46]
[326941194,1715626238836,-839.46,0.00060273,120]
[326941196,1715626238845,-839.46,0.00060547,120]
[326941198,1715626238854,-839.46,0.00060821,120]
[326941200,1715626238864,-839.50937145,0.00061095,120]
[326941202,1715626238873,-833.60436794,0.00061666,2]
[326941204,1715626238883,-8344.09967336,0.000693,4]
[326941232,1715626240649,-571.58396152,0.000693,4]
[326941233,1715626240659,-2368.96603848,0.0007,40]
[326941268,1715626246539,-1371.18453286,0.0007,40]
[326941269,1715626246550,-606.20713054,0.0007,7]
[326941270,1715626246560,-3000.0,0.0007,2]
[326941271,1715626246570,-1899.9035109,0.0007,7]
[326941272,1715626246579,-166.611603,0.00072172,120]
[326941273,1715626246589,-156.53267806,0.00072982,2]
[326941274,1715626246600,-208.58429398,0.00079199,120]
[326941275,1715626246609,-1367.78,0.0007999,3]
[326941276,1715626246618,-1879.82,0.0007999,3]
[326941277,1715626246627,-1566.51,0.0007999,3]
[326941278,1715626246637,-5000.0,0.0008,41]
[326941279,1715626246646,-165.945859,0.00080274,120]
[326941280,1715626246657,-1000.0,0.00085,85]
[326941281,1715626246666,-166.611603,0.00088376,120]
[326941282,1715626246675,-1000.0,0.00089,89]
[326941283,1715626246684,-1000.0,0.0008981,90]
[326941284,1715626246695,-1000.0,0.0008981,90]
[326941285,1715626246704,-1000.0,0.00089888,90]
[326941286,1715626246713,-18391.46808605,0.000899,120]
[326941287,1715626246723,-987.97579698,0.000899,2]
[326941288,1715626246732,-1383.86220081,0.000899,120]
[326941289,1715626246741,-1305.43,0.0008999,3]
[326941290,1715626246751,-1000.0,0.00089999,120]
[326941291,1715626246760,-3000.0,0.00089999,30]
[326941292,1715626246770,-6015.17,0.00089999,120]
[326941293,1715626246779,-1758.5962255,0.0009,45]
[326941294,1715626246788,-2832.5803938,0.0009,61]
[326941295,1715626246804,-60000.0,0.0009,120]
[326941296,1715626246818,-3000.0,0.0009,120]
[326941297,1715626246828,-4432.71168891,0.0009,120]
[326941337,1715626932838,689.68866826,9.999e-05,2]
[326941390,1715627432932,-174.81533548,0.000189,2]
[326941393,1715627432943,-10501.84776686,0.00019994,2]
[326941396,1715627432953,-2594.90254816,0.00019995,2]
[326941399,1715627432963,-154.81422293,0.00020809,2]
[326941402,1715627432972,-172.43681039,0.0002081,2]
[326941405,1715627432982,-299.53991116,0.00020909,2]
[326941408,1715627432993,-5642.03317562,0.00020909,2]
[326941411,1715627433002,-700.50410475,0.0002091,2]
[326941414,1715627433012,-94152.29713987,0.0002091,2]
[326941417,1715627433022,-309.91485327,0.0002091,2]
[326941420,1715627433032,-15705.76411353,0.00020911,2]
[326941423,1715627433042,-1448.69849891,0.00020912,2]
[326941426,1715627433053,-59346.92978658,0.00020912,2]
[326941429,1715627433062,-409.23025382,0.00020913,2]
[326941431,1715627433072,-262.96419146,0.00020913,2]
[326941433,1715627433082,-165.945859,0.00023562,2]
[326941435,1715627433091,-160.002208,0.00023562,2]
[326941438,1715627433101,-174.81533548,0.000239,2]
[326941440,1715627433110,-664.96098012,0.000263,2]
[326941442,1715627433120,-569.23384257,0.0002739,10]
[326941444,1715627433129,-174.81533548,0.000289,2]
[326941446,1715627433138,-1087.86,0.00035616,3]
[326941448,1715627433148,-1416.29019691,0.00043601,15]
[326941450,1715627433157,-7692.13746895,0.00043601,30]
[326941452,1715627433166,-500.0,0.00054794,120]
[326941453,1715627433175,-172.43681037,0.00054855,2]
[326941456,1715627433185,-151.0,0.00055,120]
[326941457,1715627433194,-631.51,0.00055068,120]
[326941458,1715627433203,-1649.2807964,0.000599,105]
[326941459,1715627433212,-1649.2807964,0.000599,105]
[326941460,1715627433221,-1649.2807964,0.000599,105]
[326941461,1715627433230,-1649.2807964,0.000599,105]
[326941462,1715627433240,-1649.2807964,0.000599,105]
[326941463,1715627433249,-737.04297519,0.000599,105]
[326941464,1715627433261,-912.23782121,0.000599,105]
[326941465,1715627433271,-160.0,0.000602,60]
[326941466,1715627433280,-317.3,0.00065753,120]
[326941467,1715627433289,-1649.2807964,0.00066871,120]
[326941468,1715627433300,-988.31735522,0.00068607,4]
[326941469,1715627433309,-606.20713054,0.0007,7]
[326941470,1715627433318,-1649.2807964,0.00074547,120]
[326941471,1715627433328,-5764.54,0.00082191,120]
[326941472,1715627433337,-1649.2807964,0.00082224,120]
[326941473,1715627433346,-52.42771733,0.00088789,120]
[326941518,1715627440569,-15327.61405661,0.00088789,120]
[326941562,1715627443240,-4619.95822606,0.00088789,120]
[326941565,1715627443250,-172.43681037,0.000889,2]
[326941567,1715627443259,-2863.7378711,0.00089,46]
[326941568,1715627443269,-13054.04800289,0.00089,120]
[326941606,1715627443645,-5245.43791999,0.00089,120]
[326941612,1715627446356,-225.94434358,0.00020913,2]
[326941613,1715627446366,-42547.92407712,0.00089,120]
[326941614,1715627446375,-294.72337047,0.00089,120]
[326941615,1715627446384,-166.86743518,0.00089001,120]
[326941616,1715627446393,-306.0,0.00089315,120]
[326941617,1715627446403,-567.28831109,0.00089765,120]
[326941618,1715627446412,-906.55,0.0008979,3]
[326941619,1715627446424,-55555.0,0.000898,120]
[326941620,1715627446433,-2000.0,0.000898,120]
[326941621,1715627446441,-1649.2807964,0.000899,120]
[326941622,1715627446451,-281.0,0.000899,40]
[326941623,1715627446460,-715.9,0.0008999,120]
[326941624,1715627446469,-10021.23503892,0.0009,120]
[326941625,1715627446479,-263884.50524376,0.0009,120]
[326941626,1715627446491,-404.57846919,0.0009,120]
[326941680,1715628632721,-161.46153262,0.00020812,2]
[326941681,1715628632731,-689.55985205,0.00020908,2]
[326941682,1715628632741,-154.79876161,0.00020908,2]
[326941683,1715628632752,-10501.84776686,0.00020908,2]
[326941684,1715628632762,-500.0,0.00020909,2]
[326941685,1715628632771,-500.0,0.00020909,2]
[326941686,1715628632782,-500.0,0.00020909,2]
[326941687,1715628632792,-500.0,0.00020909,2]
[326941688,1715628632802,-500.0,0.00020909,2]
[326941689,1715628632811,-495.0,0.00020909,2]
[326941690,1715628632821,-500.0,0.00020909,2]
[326941691,1715628632830,-500.0,0.00020909,2]
[326941692,1715628632841,-500.0,0.00020909,2]
[326941693,1715628632851,-500.0,0.00020909,2]
[326941694,1715628632861,-500.0,0.00020909,2]
[326941695,1715628632871,-500.0,0.00020909,2]
[326941696,1715628632880,-500.0,0.00020909,2]
[326941697,1715628632889,-500.0,0.00020909,2]
[326941698,1715628632898,-500.0,0.00020909,2]
[326941699,1715628632909,-500.0,0.00020909,2]
[326941700,1715628632918,-500.0,0.00020909,2]
[326941701,1715628632927,-500.0,0.00020909,2]
[326941702,1715628632937,-500.0,0.00020909,2]
[326941703,1715628632947,-45443.90943124,0.0002091,2]
[326941756,1715628638636,-1252.50584317,0.00020812,2]
[326941769,1715628641155,-600.33523208,0.00020812,2]
[326941770,1715628641165,-9932.70076766,0.0002091,2]
[326941771,1715628641177,-4112.51007392,0.0002091,2]
[326941772,1715628641190,-5293.098471,0.0002091,2]
[326941773,1715628641200,-36875.95659066,0.00020912,2]
[326941774,1715628641209,-1167.5144895,0.00020913,2]
[326941810,1715628643741,-1427.38805866,0.00020913,2]
[326941811,1715628643752,-225.0,0.00021918,2]
[326941812,1715628643761,-166.666666,0.00021918,2]
[326941813,1715628643771,-5230.59288808,0.00022,4]
[326941814,1715628643781,-166.666666,0.00022431,2]
[326941815,1715628643790,-166.666666,0.00022944,2]
[326941816,1715628643800,-166.666666,0.00023456,2]
[326941817,1715628643809,-164.495196,0.00023562,2]
[326941818,1715628643819,-166.611603,0.00023562,2]
[326941819,1715628643828,-166.666666,0.00023969,2]
[326941820,1715628643838,-105.75503171,0.00024482,2]
[326941824,1715628646596,-60.91163429,0.00024482,2]
[326941826,1715628646608,-168.01582789,0.00025,2]
[326941828,1715628646617,-210.30488113,0.00025786,3]
[326941830,1715628646627,-231.92708785,0.000263,2]
[326941857,1715628646880,-433.03389227,0.000263,2]
[326941859,1715628646889,-569.23384257,0.0002739,10]
[326941860,1715628646898,-161.46153262,0.00043841,2]
[326941862,1715628646907,-500.0,0.00054794,120]
[326941864,1715628646916,-500.0,0.00054794,120]
[326941865,1715628646924,-500.0,0.00055068,120]
[326941866,1715628646933,-500.0,0.00055068,120]
[326941867,1715628646942,-500.0,0.00055342,120]
[326941868,1715628646950,-500.0,0.00055342,120]
[326941869,1715628646959,-500.0,0.00055616,120]
[326941870,1715628646968,-112.62302222,0.00055616,120]
[326941873,1715629017935,4909.92892707,0.000125,2]
[326941883,1715629585548,3627.75481167,0.000125,2]
[326941884,1715629605199,3627.75481167,0.000125,2]
[326941885,1715629621249,3627.75481167,0.000125,2]
[326941886,1715629639224,342.89472883,0.000125,2]
[326941887,1715629639248,3284.86008284,0.000125,2]
[326941888,1715629659207,3627.75481167,0.000125,2]
[326941889,1715629679205,3627.75481167,0.000125,2]
[326941890,1715629697189,3627.75481167,0.000125,2]
[326941894,1715629715195,3627.75481167,0.000125,2]
[326941900,1715629735208,3627.75481167,0.000125,2]
[326941901,1715629753233,3627.75481167,0.000125,2]
[326941904,1715629771196,3627.75481167,0.000125,2]
[326941907,1715629789235,3627.75481167,0.000125,2]
[326941911,1715629809237,3627.75481167,0.000125,2]
[326941912,1715629831211,3627.75481167,0.000125,2]
[326941946,1715629832225,-352.56500372,0.000189,2]
[326941948,1715629832234,-10501.84776686,0.00020132,2]
[326941950,1715629832244,-2463.92353687,0.00020133,2]
[326941952,1715629832253,-3178.1352519,0.00020135,2]
[326941954,1715629832262,-169.629125,0.00020342,2]
[326941956,1715629832274,-1621.2359408,0.00020812,2]
[326941958,1715629832283,-44424.86178346,0.00020911,2]
[326941960,1715629832291,-500.0,0.00020911,2]
[326941962,1715629832300,-555.0,0.00020911,2]
[326941964,1715629832309,-196.80009832,0.00020912,2]
[326941966,1715629832318,-15705.76411353,0.00020912,2]
[326941968,1715629832328,-2986.58492757,0.00020912,2]
[326941970,1715629832340,-4870.11904232,0.00020912,2]
[326941973,1715629832353,-1182.61484399,0.00020912,2]
[326942233,1715629838474,-351.12385115,0.00020912,2]
[326942235,1715629838484,-189.69444695,0.00020913,2]
[326942237,1715629838494,-5623.7839012,0.00020913,2]
[326942239,1715629838506,-468.12640148,0.00020913,2]
[326942251,1715629838623,-2290.37869544,0.00020913,2]
[326942257,1715629840504,-464.78866184,0.00020913,2]
[326942258,1715629840552,-2190.56008098,0.00020913,2]
[326942259,1715629840563,-165.579642,0.00023562,2]
[326942260,1715629840572,-163.192741,0.00023562,2]
[326942261,1715629840583,-352.56500372,0.000239,2]
[326942262,1715629840593,-664.96098012,0.000263,2]
[326942263,1715629840603,-569.23384257,0.0002739,10]
[326942264,1715629840613,-352.56500372,0.000289,2]
[326942265,1715629840622,-7497.2630916,0.0003,2]
[326942266,1715629840632,-467.4319829,0.00034,4]
[326942267,1715629840642,-833.42845868,0.00043676,2]
[326942268,1715629840652,-500.0,0.00054794,120]
[326942269,1715629840661,-230.18361946,0.00055068,120]
[326942270,1715629840670,-500.0,0.00055615,120]
[326942271,1715629840679,-1688.8031208,0.00055616,4]
[326942272,1715629840689,-3000.0,0.00055616,2]
[326942273,1715629840698,-500.0,0.00055889,120]
[326942274,1715629840708,-500.0,0.00056163,120]
[326942275,1715629840718,-500.0,0.00056437,120]
[326942276,1715629840728,-500.0,0.00056711,120]
[326942277,1715629840738,-378.37697778,0.00056985,120]
[326942278,1715629840748,-163.192741,0.0006137,2]
[326942279,1715629840759,-606.20713054,0.0007,7]
[326942280,1715629840768,-5000.0,0.0008,40]
[326942281,1715629840776,-164.495196,0.00080274,120]
[326942282,1715629840786,-166.611603,0.00080274,120]
[326942283,1715629840796,-4994.8256,0.00084,90]
[326942284,1715629840806,-500.0,0.00084998,120]
[326942285,1715629840817,-5000.0,0.00085,41]
[326942286,1715629840826,-3310.10370995,0.00085,90]
[326942287,1715629840840,-980.38739656,0.00085,90]
[326942315,1715629843510,-489.57820865,0.00085,90]
[326942325,1715629846366,-219.93068484,0.00085,90]
[326942326,1715629846375,-161.46153262,0.00085173,2]
[326942327,1715629846384,-370.48102582,0.00085272,120]
[326942328,1715629846397,-182.04441726,0.00085272,120]
[326942329,1715629846406,-153.0,0.00088082,120]
[326942330,1715629846416,-153.0,0.00088082,120]
[326942331,1715629846424,-153.0,0.00088082,120]
[326942332,1715629846436,-153.0,0.00088082,120]
[326942333,1715629846445,-280.5464271,0.00088356,120]
[326942334,1715629846455,-271.1520628,0.00088356,120]
[326942335,1715629846464,-457.4626375,0.00088356,120]
[326942336,1715629846474,-308.9818084,0.00088356,120]
[326942337,1715629846483,-446.1346099,0.00088356,120]
[326942338,1715629846492,-153.0,0.00088356,120]
[326942339,1715629846501,-13.41521536,0.00088356,120]
[326942340,1715629846512,-139.58478464,0.00088356,120]
[326942341,1715629846522,-150.99999999,0.00089,2]
[326942342,1715629846531,-674.57,0.0008909,3]
[326942343,1715629846541,-1286.37,0.0008909,3]
[326942344,1715629846549,-502.82274976,0.0008909,3]
[326942345,1715629846563,-569.15725024,0.0008909,3]
[326942346,1715629846572,-9904.0009901,0.000891,4]
[326942347,1715629846582,-398.28945425,0.00089724,20]
[326942348,1715629846592,-1000.0,0.00089751,90]
[326942349,1715629846601,-1000.0,0.00089769,90]
[326942350,1715629846610,-1000.0,0.00089798,90]
[326942351,1715629846620,-1000.0,0.00089852,90]
[326942352,1715629846629,-388.54539031,0.00089872,90]
[326942353,1715629846639,-896.31996141,0.000899,10]
[326942354,1715629846650,-500.49382646,0.000899,10]
[326942355,1715629851207,3627.75481167,0.000125,2]
[326942356,1715629867207,3046.15446463,0.000125,2]
[326942357,1715629966156,154.79876161,9.999e-05,2]
[326942358,1715629977222,3627.75481167,0.000125,2]
[326942359,1715629997230,3627.75481167,0.000125,2]
[326942360,1715630015232,3624.80694537,0.000125,2]
[326942365,1715630156251,208.4,9.999e-05,2]
[326942377,1715630609315,22610.8709197,0.00016333,2]
[326942378,1715630937855,1148.14078624,0.00015,2]
[326942426,1715631032469,-1148.14078624,0.00019611,2]
[326942429,1715631032481,-306.3083692,0.00019611,2]
[326942431,1715631032491,-169.082181,0.00019614,2]
[326942433,1715631032500,-165.76807821,0.00019759,2]
[326942435,1715631032510,-10501.84776686,0.00019999,2]
[326942437,1715631032519,-4024.20236132,0.0002,2]
[326942439,1715631032528,-1582.38466218,0.00020812,2]
[326942441,1715631032538,-154.82968734,0.00020911,2]
[326942443,1715631032547,-163.76577678,0.00020912,2]
[326942445,1715631032556,-162.76895696,0.00020912,2]
[326942447,1715631032566,-189.69444695,0.00020912,2]
[326942449,1715631032576,-1465.55583977,0.00020912,2]
[326942451,1715631032585,-204.94636995,0.00020912,2]
[326942453,1715631032596,-301.69246058,0.00020912,2]
[326942455,1715631032605,-2461.00167912,0.00020912,2]
[326942457,1715631032616,-718.89573392,0.00020912,2]
[326942459,1715631032625,-4050.57331481,0.00020912,2]
[326942461,1715631032635,-380.53498249,0.00020912,2]
[326942463,1715631032644,-1679.73219039,0.00020912,2]
[326942465,1715631032654,-294.51792014,0.00020912,2]
[326942467,1715631032664,-455.9748396,0.00020912,2]
[326942469,1715631032673,-314.3253547,0.00020912,2]
[326942471,1715631032683,-266.17561455,0.00020912,2]
[326942473,1715631032694,-158.33888364,0.00020912,2]
[326942475,1715631032704,-154.79876161,0.00020912,2]
[326942477,1715631032714,-192.45,0.00020912,2]
[326942480,1715631032730,-2087.25107621,0.00020912,2]
[326942482,1715631032739,-3467.82757115,0.00020912,2]
[326942484,1715631032748,-2632.0294246,0.00020912,2]
[326942486,1715631032758,-529.24470418,0.00020912,2]
[326942488,1715631032769,-372.31624743,0.00020912,2]